bitfinex/quotes_SOLUSD_20251115
["timestamp","ask_amount","ask_price","bid_price","bid_amount"]
[1763187802415,0.7,143.54,143.5,2.72461921]
[1763187802726,0.7,143.53,143.5,0.67]
[1763187802908,0.7,143.53,143.5,3.39461921]
[1763187805722,3.42461921,143.53,143.5,0.67]
[1763187805925,0.7,143.52,143.5,0.67]
[1763187806329,3.42461921,143.53,143.5,0.67]
[1763187807333,0.7,143.53,143.5,0.67]
[1763187807836,0.7,143.53,143.5,3.39461921]
[1763187813024,0.7,143.53,143.49,3.39461921]
[1763187813738,3.49280851,143.53,143.49,3.39461921]
[1763187813935,3.49280851,143.53,143.52,2.72461921]
[1763187813936,2.79280851,143.53,143.52,2.72461921]
[1763187814126,3.47881972,143.56,143.52,2.72461921]
[1763187814327,6.97162823,143.56,143.53,0.67]
[1763187814538,0.75420051,143.56,143.53,3.39461921]
[1763187814740,0.75420051,143.56,143.53,0.67]
[1763187815034,3.47881972,143.56,143.52,0.67]
[1763187815415,3.42461921,143.55,143.52,0.67]
[1763187816238,10.39356212,143.55,143.52,0.67]
[1763187816445,0.7,143.54,143.52,0.67]
[1763187817116,9.69356212,143.55,143.52,0.67]
[1763187817434,3.42461921,143.55,143.52,0.67]
[1763187817815,0.7,143.55,143.52,0.67]
[1763187818415,2.72461921,143.54,143.51,0.67]
[1763187818621,12.41786833,143.54,143.49,3.39461921]
[1763187818828,0.7,143.53,143.49,3.39461921]
[1763187819043,0.7,143.53,143.5,0.67]
[1763187820033,0.7,143.53,143.5,3.39461921]
[1763187820243,83.1128727,143.54,143.51,2.72461921]
[1763187820442,83.1128727,143.54,143.51,3.39461921]
[1763187820748,83.1128727,143.54,143.52,0.67]
[1763187822040,85.83749191,143.54,143.5,0.67]
[1763187822239,0.7,143.53,143.5,0.67]
[1763187823947,21.64752644,143.53,143.5,0.67]
[1763187827757,0.7,143.53,143.5,0.67]
[1763187828144,0.7,143.53,143.5,3.39461921]
[1763187828343,83.1128727,143.54,143.51,2.72461921]
[1763187828535,83.1128727,143.54,143.52,0.66]
[1763187830656,83.1128727,143.54,143.52,3.38461921]
[1763187831041,83.1128727,143.54,143.53,0.66]
[1763187831242,17.40609444,143.56,143.53,0.66]
[1763187832158,13.99147523,143.56,143.53,0.66]
[1763187832362,13.99147523,143.56,143.53,3.38461921]
[1763187832867,13.99147523,143.56,143.54,0.66]
[1763187833365,14.68147523,143.56,143.53,3.38461921]
[1763187833747,0.74420051,143.56,143.53,3.38461921]
[1763187834744,0.74420051,143.56,143.54,0.66]
[1763187835145,3.46881972,143.56,143.52,2.72461921]
[1763187835461,3.46881972,143.56,143.53,0.66]
[1763187835658,0.69,143.55,143.52,0.66]
[1763187835862,3.46881972,143.56,143.53,0.66]
[1763187836259,0.69,143.55,143.53,0.66]
[1763187837354,2.77881972,143.56,143.53,0.66]
[1763187837555,3.46881972,143.56,143.53,0.66]
[1763187837750,0.05420051,143.56,143.53,0.66]
[1763187837947,0.74420051,143.56,143.53,0.66]
[1763187839061,0.05420051,143.56,143.54,2.72461921]
[1763187839243,0.74420051,143.56,143.53,0.66]
[1763187839766,0.05420051,143.56,143.53,0.66]
[1763187839969,0.05420051,143.56,143.53,3.38461921]
[1763187840352,0.05420051,143.56,143.54,0.66]
[1763187841170,0.74420051,143.56,143.54,0.66]
[1763187841368,0.74420051,143.56,143.52,0.66]
[1763187841549,3.46881972,143.56,143.53,0.66]
[1763187841746,24.41195909,143.56,143.53,0.66]
[1763187841950,0.69,143.55,143.51,2.72461921]
[1763187842164,0.69,143.55,143.51,3.38461921]
[1763187842368,0.69,143.55,143.51,0.66]
[1763187842558,0.69,143.55,143.51,3.38461921]
[1763187842751,0.69,143.55,143.52,0.66]
[1763187843756,0.69,143.55,143.52,2.40326679]
[1763187844370,0.05420051,143.56,143.53,0.66]
[1763187844553,0.74420051,143.56,143.53,2.40326679]
[1763187845445,0.74420051,143.56,143.53,2.52744534]
[1763187847477,0.05420051,143.56,143.54,0.66]
[1763187847678,0.74420051,143.56,143.54,0.66]
[1763187847872,0.74420051,143.56,143.53,1.86744534]
[1763187848057,7.71231745,143.56,143.53,1.86744534]
[1763187848251,7.71231745,143.56,143.53,2.52744534]
[1763187848770,0.69,143.55,143.53,0.66]
[1763187849683,0.69,143.55,143.52,2.62084552]
[1763187850265,0.69,143.55,143.52,0.66]
[1763187850477,0.69,143.55,143.53,0.68]
[1763187850653,0.69,143.55,143.51,2.64084552]
[1763187850855,0.69,143.55,143.52,0.68]
[1763187851385,0.69,143.55,143.52,2.64084552]
[1763187851757,7.02231745,143.56,143.53,0.68]
[1763187851955,7.74231745,143.56,143.53,0.68]
[1763187852670,0.77420051,143.56,143.53,0.68]
[1763187854379,2.73504603,143.56,143.51,2.67084552]
[1763187854681,13.990433,143.55,143.52,2.39097531]
[1763187854876,0.68,143.55,143.52,2.39097531]
[1763187857682,0.68,143.55,143.52,0.71]
[1763187857882,0.68,143.55,143.52,2.39097531]
[1763187859756,20.99733988,143.56,143.53,2.39097531]
[1763187859960,0.05420051,143.56,143.53,2.39097531]
[1763187860291,0.05420051,143.56,143.54,2.39097531]
[1763187860455,0.05420051,143.56,143.54,0.71]
[1763187860653,0.05420051,143.56,143.55,0.71]
[1763187860880,0.05420051,143.56,143.55,2.39097531]
[1763187870967,0.05420051,143.56,143.55,9.35718917]
[1763187871383,0.05420051,143.56,143.55,18.00562594]
[1763187871591,0.05420051,143.56,143.55,1.68097531]
[1763187871787,0.05420051,143.56,143.55,2.39097531]
[1763187873498,0.05420051,143.56,143.55,9.35718917]
[1763187876001,0.05420051,143.56,143.55,2.39097531]
[1763187883992,0.05420051,143.56,143.55,9.35718917]
[1763187887901,0.05420051,143.56,143.55,19.28817843]
[1763187888204,1.72696019,143.61,143.56,9.93098926]
[1763187888389,1.72696019,143.61,143.6,1.68097531]
[1763187888583,1.72696019,143.61,143.6,2.35097531]
[1763187890396,1.72696019,143.61,143.6,9.31476361]
[1763187890586,1.72696019,143.61,143.6,12.28196457]
[1763187890786,1.72696019,143.61,143.6,19.24575287]
[1763187893510,1.72696019,143.61,143.6,33.20869275]
[1763187896011,1.72696019,143.61,143.6,25.00217531]
[1763187901627,1.72696019,143.61,143.6,24.33217531]
[1763187902233,2.39696019,143.61,143.6,1.68097531]
[1763187902607,2.39696019,143.61,143.59,1.68097531]
[1763187902832,0.67,143.6,143.59,1.68097531]
[1763187904233,2.39696019,143.61,143.59,1.68097531]
[1763187904823,2.39696019,143.61,143.58,22.6512]
[1763187905010,2.39696019,143.61,143.59,2.62368932]
[1763187905439,2.39696019,143.61,143.6,2.62368932]
[1763187908744,2.39696019,143.61,143.59,2.62368932]
[1763187908927,2.39696019,143.61,143.58,22.6512]
[1763187908928,0.67,143.6,143.58,25.27488932]
[1763187909733,1.72696019,143.61,143.59,3.29368932]
[1763187909932,2.39696019,143.61,143.59,2.62368932]
[1763187910333,0.67,143.6,143.58,2.62368932]
[1763187911742,0.67,143.6,143.57,2.62368932]
[1763187911947,0.67,143.6,143.56,2.62368932]
[1763187913175,0.67,143.6,143.57,2.62368932]
[1763187918962,0.67,143.6,143.56,2.62368932]
[1763187919151,3.29368932,143.6,143.55,2.62368932]
[1763187919458,0.72,143.59,143.55,3.30368932]
[1763187919754,0.72,143.59,143.56,2.62368932]
[1763187921141,0.72,143.59,143.55,2.62368932]
[1763187921459,21.6572928,143.59,143.55,2.62368932]
[1763187921849,0.72,143.58,143.55,3.30368932]
[1763187926568,0.72,143.58,143.56,2.62368932]
[1763187931490,0.72,143.58,143.55,3.30368932]
[1763187932961,0.72,143.58,143.55,2.62368932]
[1763187933964,0.72,143.58,143.55,3.30368932]
[1763187936079,0.72,143.58,143.55,2.62368932]
[1763187936580,0.72,143.58,143.55,3.30368932]
[1763187936982,0.72,143.58,143.55,2.62368932]
[1763187937495,0.72,143.58,143.55,3.30368932]
[1763187939656,0.72,143.58,143.55,0.68]
[1763187939853,0.72,143.58,143.55,3.30368932]
[1763187940466,0.72,143.58,143.55,0.68]
[1763187941266,0.72,143.58,143.54,25.27488932]
[1763187941475,0.72,143.58,143.55,0.68]
[1763187942396,0.72,143.59,143.55,3.30368932]
[1763187942560,85.73656202,143.6,143.55,3.30368932]
[1763187942561,0.72,143.58,143.55,3.30368932]
[1763187945670,0.7,143.58,143.56,0.69]
[1763187945977,0.7,143.58,143.55,3.31368932]
[1763187951695,0.7,143.59,143.56,3.31368932]
[1763187952482,0.7,143.59,143.56,0.69]
[1763187954086,0.7,143.59,143.55,3.31368932]
[1763187954285,0.7,143.59,143.56,0.69]
[1763187954795,0.7,143.59,143.56,3.31368932]
[1763187957003,0.7,143.59,143.56,0.69]
[1763187957504,0.7,143.59,143.55,2.62368932]
[1763187957898,3.32368932,143.59,143.54,22.6512]
[1763187958078,23.56682869,143.58,143.53,3.31368932]
[1763187958285,24.26682869,143.58,143.53,3.31368932]
[1763187958588,0.7,143.57,143.53,3.31368932]
[1763187958786,21.64167742,143.57,143.53,3.31368932]
[1763187959190,0.7,143.56,143.53,3.31368932]
[1763187961287,0.7,143.56,143.54,2.62368932]
[1763187961792,0.7,143.56,143.54,3.31368932]
[1763187962805,0.7,143.56,143.54,2.62368932]
[1763187964592,0.7,143.56,143.51,22.6512]
[1763187964805,2.62368932,143.54,143.49,0.69]
[1763187965092,22.62761821,143.55,143.5,1.68155433]
[1763187965289,0.7,143.55,143.51,1.68155433]
[1763187965490,7.66956909,143.54,143.51,1.68155433]
[1763187965803,0.7,143.54,143.51,1.68155433]
[1763187966011,0.7,143.53,143.51,1.68155433]
[1763187966210,7.66956909,143.53,143.5,2.37155433]
[1763187969102,7.66956909,143.53,143.5,0.69]
[1763187969426,7.66956909,143.53,143.5,2.37155433]
[1763187971716,7.66956909,143.53,143.5,0.69]
[1763187971923,0.67,143.52,143.5,2.37155433]
[1763187972308,0.67,143.53,143.5,2.37155433]
[1763187972509,7.63956909,143.53,143.5,2.37155433]
[1763187973518,7.63956909,143.53,143.51,0.71]
[1763187975937,7.63956909,143.53,143.5,2.39155433]
[1763187977417,83.8228727,143.57,143.52,1.68155433]
[1763187977640,83.8228727,143.57,143.53,2.39155433]
[1763187978130,83.8228727,143.57,143.54,0.71]
[1763187978312,0.71,143.56,143.54,0.71]
[1763187978929,0.71,143.56,143.53,0.71]
[1763187979133,0.71,143.56,143.54,0.71]
[1763187980212,0.71,143.56,143.53,2.39155433]
[1763187980828,0.1587778,143.56,143.53,2.39155433]
[1763187981820,1.84033213,143.56,143.52,1.68155433]
[1763187982328,1.68155433,143.56,143.52,2.39155433]
[1763187982730,1.68155433,143.55,143.5,2.39155433]
[1763187982915,23.27761821,143.55,143.5,1.68155433]
[1763187983116,0.65,143.54,143.51,0.71]
[1763187983511,7.61941308,143.54,143.51,0.71]
[1763187983921,0.65,143.54,143.51,0.71]
[1763187984320,6.96941308,143.53,143.5,0.71]
[1763187984642,6.96941308,143.53,143.51,0.71]
[1763187985431,9.30096741,143.53,143.49,2.39155433]
[1763187985711,7.61941308,143.53,143.49,1.68155433]
[1763187985910,7.61941308,143.53,143.5,0.71]
[1763187986111,0.65,143.52,143.49,2.39155433]
[1763187986516,0.65,143.52,143.49,0.71]
[1763187987227,6.97036444,143.52,143.49,0.71]
[1763187988136,0.65,143.51,143.48,2.39155433]
[1763187988832,0.65,143.51,143.48,0.71]
[1763187989031,2.33155433,143.51,143.47,0.71]
[1763187989223,0.65,143.5,143.47,0.71]
[1763187989426,21.60045218,143.5,143.47,0.71]
[1763187989742,23.28200651,143.5,143.45,1.68155433]
[1763187989925,20.95045218,143.5,143.47,1.68155433]
[1763187990440,21.60045218,143.5,143.47,2.39155433]
[1763187990942,20.95045218,143.5,143.47,2.39155433]
[1763187991121,21.60045218,143.5,143.47,2.39155433]
[1763187992329,20.95045218,143.5,143.48,0.71]
[1763187992632,83.1128727,143.52,143.48,2.39155433]
[1763187992817,104.71332488,143.52,143.49,0.71]
[1763187993017,104.71332488,143.52,143.48,2.39155433]
[1763187993234,0.65,143.51,143.48,2.39155433]
[1763187993453,0.65,143.51,143.48,0.71]
[1763187993839,7.62049561,143.51,143.48,0.71]
[1763187994434,0.65,143.51,143.48,0.71]
[1763187996654,0.65,143.51,143.48,2.39155433]
[1763187997173,83.1128727,143.52,143.48,2.39155433]
[1763187997373,0.65,143.51,143.48,2.39155433]
[1763187998470,0.65,143.51,143.48,0.71]
[1763187998680,0.65,143.51,143.48,2.39155433]
[1763187999178,83.7628727,143.52,143.48,0.71]
[1763187999373,83.7628727,143.52,143.49,0.71]
[1763188000775,83.1128727,143.52,143.51,1.68155433]
[1763188000958,83.1128727,143.55,143.51,2.39155433]
[1763188001276,83.7628727,143.55,143.51,0.71]
[1763188001450,85.44442703,143.55,143.51,0.71]
[1763188001654,0.65,143.54,143.51,0.71]
[1763188004062,83.1128727,143.55,143.51,0.71]
[1763188004262,83.1128727,143.55,143.51,2.39155433]
[1763188004570,83.1128727,143.55,143.52,0.66]
[1763188005576,83.1128727,143.55,143.52,2.34155433]
[1763188005976,83.1128727,143.55,143.53,0.66]
[1763188006286,9.30086685,143.58,143.53,2.34155433]
[1763188006504,2.33155433,143.58,143.54,0.66]
[1763188007574,2.33155433,143.58,143.54,2.34155433]
[1763188007799,2.33155433,143.58,143.54,0.66]
[1763188007993,2.33155433,143.57,143.54,0.66]
[1763188008167,2.33155433,143.57,143.53,1.68155433]
[1763188008168,2.33155433,143.57,143.53,2.34155433]
[1763188008366,1.68155433,143.57,143.53,2.34155433]
[1763188008576,0.65,143.56,143.53,2.34155433]
[1763188009611,0.65,143.56,143.52,1.68155433]
[1763188009978,2.33155433,143.56,143.52,0.66]
[1763188010997,1.68155433,143.56,143.52,0.66]
[1763188011199,0.65,143.55,143.52,0.66]
[1763188012406,84.79442703,143.54,143.49,0.66]
[1763188012700,1.68155433,143.53,143.49,0.66]
[1763188012908,2.33155433,143.53,143.49,0.66]
[1763188013886,2.33155433,143.53,143.49,2.34155433]
[1763188014089,0.65,143.53,143.49,2.34155433]
[1763188017414,2.33155433,143.53,143.49,2.34155433]
[1763188017602,2.33155433,143.53,143.49,0.66]
[1763188017987,1.68155433,143.53,143.49,0.66]
[1763188018288,0.65,143.52,143.49,0.66]
[1763188021518,2.33155433,143.53,143.49,0.66]
[1763188022320,2.33155433,143.52,143.48,0.66]
[1763188022687,0.65,143.51,143.48,0.66]
[1763188025013,0.65,143.52,143.48,3.28796454]
[1763188025398,0.65,143.52,143.49,0.66]
[1763188026812,0.65,143.52,143.48,2.62796454]
[1763188027112,0.65,143.52,143.49,0.66]
[1763188027514,2.62796454,143.53,143.49,3.28796454]
[1763188027515,0.65,143.53,143.49,3.28796454]
[1763188027716,0.65,143.52,143.49,3.28796454]
[1763188029319,0.65,143.52,143.49,0.66]
[1763188030118,3.27796454,143.52,143.49,0.66]
[1763188032124,2.62796454,143.52,143.49,0.66]
[1763188032616,3.27796454,143.52,143.49,0.66]
[1763188033522,2.62796454,143.52,143.49,0.66]
[1763188034034,3.27796454,143.52,143.49,0.66]
[1763188034395,3.27796454,143.51,143.47,0.66]
[1763188036122,2.62796454,143.51,143.47,0.66]
[1763188036293,2.62796454,143.52,143.47,3.28796454]
[1763188036497,3.27796454,143.52,143.47,3.28796454]
[1763188036820,3.27796454,143.52,143.48,0.66]
[1763188038294,85.74083724,143.54,143.49,2.62796454]
[1763188038490,83.1128727,143.53,143.5,0.66]
[1763188038735,86.39083724,143.53,143.5,0.66]
[1763188039818,85.74083724,143.53,143.5,0.66]
[1763188040121,0.14216157,143.55,143.5,3.28796454]
[1763188040122,3.27796454,143.55,143.5,3.28796454]
[1763188040499,3.27796454,143.55,143.51,0.66]
[1763188042525,2.62796454,143.55,143.51,0.66]
[1763188043329,3.27796454,143.55,143.51,0.66]
[1763188043798,2.62796454,143.53,143.49,0.66]
[1763188044202,3.27796454,143.53,143.49,0.66]
[1763188045825,0.65,143.53,143.49,0.66]
[1763188046036,3.27796454,143.53,143.49,0.66]
[1763188048215,0.65,143.52,143.49,0.66]
[1763188048416,0.59123702,143.52,143.49,0.66]
[1763188048630,2.62796454,143.53,143.49,0.66]
[1763188050435,3.21796454,143.53,143.49,0.66]
[1763188050610,2.62796454,143.52,143.49,0.66]
[1763188051217,3.21796454,143.52,143.49,0.66]
[1763188051423,2.62796454,143.52,143.49,0.66]
[1763188051926,3.21796454,143.53,143.49,0.66]
[1763188052724,2.62796454,143.51,143.46,2.62796454]
[1763188052925,2.62796454,143.51,143.47,0.66]
[1763188053127,3.21796454,143.51,143.47,0.66]
[1763188054921,24.16987989,143.51,143.47,0.66]
[1763188056919,0.59,143.5,143.47,0.66]
[1763188057119,3.21796454,143.5,143.44,22.6512]
[1763188057346,2.62796454,143.48,143.44,0.66]
[1763188057721,0.59,143.47,143.44,0.66]
[1763188058225,2.62796454,143.48,143.44,0.66]
[1763188058226,3.21796454,143.48,143.44,0.66]
[1763188058749,0.59,143.47,143.44,0.66]
[1763188058934,2.62796454,143.48,143.44,0.66]
[1763188059135,3.21796454,143.48,143.44,0.66]
[1763188059444,3.21796454,143.47,143.44,0.66]
[1763188062934,2.62796454,143.46,143.41,2.72796454]
[1763188063239,88.53540181,143.46,143.43,0.67]
[1763188063440,89.12540181,143.46,143.43,0.67]
[1763188064329,89.12540181,143.46,143.41,2.72796454]
[1763188064531,89.12540181,143.46,143.42,0.67]
[1763188066326,2.62796454,143.44,143.41,0.1]
[1763188066526,2.62796454,143.44,143.41,0.77]
[1763188066749,3.21796454,143.44,143.41,0.77]
[1763188067140,6.01272436,143.44,143.41,0.77]
[1763188067531,3.21796454,143.43,143.41,0.1]
[1763188067740,83.1128727,143.46,143.42,0.67]
[1763188067933,83.1128727,143.45,143.42,0.67]
[1763188068230,85.90763252,143.45,143.42,0.67]
[1763188068629,89.12559706,143.45,143.42,0.67]
[1763188069147,86.49763252,143.45,143.42,0.67]
[1763188069331,2.62796454,143.44,143.42,0.67]
[1763188069532,2.7949551,143.44,143.42,0.67]
[1763188073666,2.7949551,143.44,143.41,0.77]
[1763188073667,5.42291964,143.44,143.41,0.77]
[1763188073830,6.01291964,143.44,143.41,0.1]
[1763188074030,0.59,143.43,143.41,0.1]
[1763188074330,5.42291964,143.44,143.41,0.1]
[1763188074331,6.01291964,143.44,143.41,0.1]
[1763188075933,5.42291964,143.44,143.41,0.1]
[1763188076142,0.59,143.43,143.41,0.1]
[1763188076453,3.21796454,143.43,143.41,0.1]
[1763188076631,2.62796454,143.43,143.41,0.1]
[1763188077843,3.21796454,143.42,143.41,0.1]
[1763188078228,6.01331028,143.42,143.41,0.1]
[1763188078728,83.25503427,143.45,143.41,3.39796454]
[1763188078942,83.25503427,143.45,143.42,0.67]
[1763188079445,83.84503427,143.45,143.42,0.67]
[1763188083333,83.1128727,143.44,143.42,0.67]
[1763188084653,28.07411964,143.46,143.42,3.29796454]
[1763188084654,25.4461551,143.46,143.42,3.29796454]
[1763188084844,22.6512,143.46,143.43,2.62796454]
[1763188085044,86.33083724,143.48,143.44,2.62796454]
[1763188085045,108.55863727,143.48,143.44,2.62796454]
[1763188085250,105.7640727,143.48,143.44,3.29796454]
[1763188085449,7.07287336,143.51,143.47,2.62796454]
[1763188085633,7.07287336,143.51,143.48,0.67]
[1763188085839,2.62796454,143.49,143.43,3.29796454]
[1763188086044,2.62796454,143.48,143.43,3.29796454]
[1763188086252,2.62796454,143.48,143.44,0.67]
[1763188086936,1.68290415,143.47,143.44,0.67]
[1763188087356,0.59,143.48,143.41,0.77]
[1763188087357,1.68290415,143.45,143.41,0.77]
[1763188087563,1.68290415,143.45,143.42,0.67]
[1763188088445,25.44595982,143.47,143.42,2.35290415]
[1763188088446,24.33410415,143.47,143.42,2.35290415]
[1763188088644,1.68290415,143.49,143.43,1.68290415]
[1763188088849,35.23420183,143.5,143.44,2.35290415]
[1763188089052,24.33410415,143.5,143.45,0.67]
[1763188089348,24.33410415,143.5,143.45,2.35290415]
[1763188089747,24.33410415,143.5,143.46,0.67]
[1763188090136,1.82506572,143.51,143.46,0.67]
[1763188090354,1.68290415,143.5,143.46,0.67]
[1763188091440,83.1128727,143.51,143.46,2.35290415]
[1763188091846,83.1128727,143.51,143.47,0.72]
[1763188092958,84.79577685,143.51,143.47,0.72]
[1763188093550,1.68290415,143.5,143.47,0.72]
[1763188098244,85.38577685,143.51,143.47,0.72]
[1763188098467,84.79577685,143.51,143.47,0.72]
[1763188098850,83.1128727,143.51,143.47,0.72]
[1763188100575,83.1128727,143.51,143.47,2.40290415]
[1763188100942,83.1128727,143.51,143.48,0.66]
[1763188102787,84.79577685,143.51,143.48,0.66]
[1763188102998,85.38577685,143.51,143.48,0.66]
[1763188104051,1.68290415,143.5,143.48,0.66]
[1763188104252,84.79577685,143.51,143.48,0.66]
[1763188105377,2.27290415,143.5,143.46,0.66]
[1763188106174,1.68290415,143.5,143.46,0.66]
[1763188107679,1.68290415,143.49,143.46,0.66]
[1763188108262,1.68290415,143.47,143.44,0.66]
[1763188108566,2.27290415,143.47,143.44,0.66]
[1763188111386,1.68290415,143.46,143.44,0.66]
[1763188112795,2.27290415,143.47,143.44,0.66]
[1763188113288,1.68290415,143.46,143.44,0.66]
[1763188115093,0.59,143.47,143.44,0.66]
[1763188115094,2.27290415,143.47,143.44,0.66]
[1763188115280,1.68290415,143.46,143.44,0.66]
[1763188115478,1.68290415,143.46,143.43,0.66]
[1763188117692,1.68290415,143.47,143.43,0.66]
[1763188118266,24.92410415,143.48,143.43,0.66]
[1763188118503,83.1128727,143.47,143.43,0.66]
[1763188120118,84.79577685,143.47,143.43,0.66]
[1763188122316,83.1128727,143.47,143.43,0.66]
[1763188125984,0.59,143.46,143.43,0.66]
[1763188126189,84.79577685,143.47,143.43,0.66]
[1763188126414,85.38577685,143.47,143.43,0.66]
[1763188127208,84.79577685,143.47,143.43,0.66]
[1763188128317,83.1128727,143.47,143.43,0.66]
[1763188137606,83.1128727,143.47,143.43,2.34290415]
[1763188138002,83.1128727,143.47,143.44,0.7]
[1763188138516,1.68290415,143.49,143.44,0.7]
[1763188138902,2.27290415,143.49,143.44,0.7]
[1763188141410,6.97250074,143.5,143.45,1.68290415]
[1763188141621,0.59,143.5,143.46,0.7]
[1763188142326,2.27290415,143.5,143.46,0.7]
[1763188142837,20.95337873,143.52,143.46,0.7]
[1763188143037,1.68290415,143.51,143.46,0.7]
[1763188143201,2.27290415,143.51,143.46,0.7]
[1763188143722,1.68290415,143.51,143.46,0.7]
[1763188143923,0.59,143.5,143.46,0.7]
[1763188146129,2.27290415,143.51,143.46,0.7]
[1763188147128,1.68290415,143.51,143.46,0.7]
[1763188147302,0.59,143.5,143.46,0.7]
[1763188149242,2.62850768,143.51,143.46,0.7]
[1763188149437,3.21850768,143.51,143.46,0.7]
[1763188149954,3.21850768,143.5,143.46,0.7]
[1763188150322,0.59,143.49,143.46,0.7]
[1763188150517,3.21850768,143.5,143.46,0.7]
[1763188151340,2.62850768,143.5,143.44,25.27970768]
[1763188151644,3.21850768,143.49,143.45,0.67]
[1763188152025,0.59,143.49,143.45,0.67]
[1763188152643,3.21850768,143.5,143.45,3.29850768]
[1763188153020,3.21850768,143.5,143.46,0.7]
[1763188154956,3.21850768,143.49,143.46,0.7]
[1763188155455,3.21850768,143.49,143.45,0.7]
[1763188157032,0.59,143.49,143.45,0.7]
[1763188157232,2.62850768,143.5,143.45,0.7]
[1763188157437,3.21850768,143.5,143.45,0.7]
[1763188159242,2.62850768,143.49,143.45,0.7]
[1763188159552,3.21850768,143.49,143.45,0.7]
[1763188163052,2.62850768,143.49,143.45,0.7]
[1763188163251,3.21850768,143.49,143.45,0.7]
[1763188164728,0.59,143.49,143.45,0.7]
[1763188165356,86.33138038,143.5,143.45,0.7]
[1763188165558,85.74138038,143.5,143.45,0.7]
[1763188165859,0.59,143.49,143.45,0.7]
[1763188167156,3.21850768,143.49,143.45,0.7]
[1763188167369,2.62850768,143.49,143.45,0.7]
[1763188170545,3.21850768,143.49,143.45,0.7]
[1763188175869,20.95484231,143.48,143.45,0.7]
[1763188179870,3.21850768,143.49,143.45,0.7]
[1763188180044,24.17334999,143.49,143.45,0.7]
[1763188180444,3.21850768,143.49,143.45,0.7]
[1763188180669,20.95484231,143.48,143.45,0.7]
[1763188185172,24.17334999,143.48,143.45,0.7]
[1763188185775,23.58334999,143.48,143.45,0.7]
[1763188186062,24.17334999,143.48,143.45,0.7]
[1763188186249,0.66,143.47,143.45,0.1]
[1763188188486,3.28850768,143.47,143.42,43.60604231]
[1763188188652,2.62850768,143.46,143.42,0.71]
[1763188188970,24.24627777,143.46,143.42,0.71]
[1763188189269,0.66,143.45,143.42,0.71]
[1763188189753,3.45456457,143.45,143.42,0.71]
[1763188190755,0.66,143.44,143.42,0.71]
[1763188191156,3.45475982,143.44,143.42,0.71]
[1763188191555,2.79475982,143.44,143.42,0.71]
[1763188194873,3.45475982,143.44,143.42,0.71]
[1763188195382,2.79475982,143.44,143.42,0.71]
[1763188197368,2.62850768,143.46,143.42,0.71]
[1763188197566,7.07332968,143.45,143.42,0.71]
[1763188199281,7.73332968,143.45,143.42,0.71]
[1763188200797,7.07332968,143.45,143.42,0.71]
[1763188200981,3.28850768,143.48,143.42,3.33850768]
[1763188201157,0.66,143.45,143.42,3.50417414]
[1763188201362,0.66,143.45,143.42,0.71]
[1763188201697,0.66,143.45,143.43,0.71]
[1763188201991,5.42287702,143.46,143.43,0.71]
[1763188202166,6.08287702,143.46,143.43,0.71]
[1763188202786,3.28850768,143.46,143.43,0.71]
[1763188203689,2.62850768,143.46,143.43,0.71]
[1763188203905,0.66,143.45,143.42,0.71]
[1763188204194,12.99034771,143.46,143.42,0.71]
[1763188204490,3.28850768,143.46,143.42,0.71]
[1763188204996,0.66,143.46,143.42,0.71]
[1763188207489,2.62850768,143.44,143.41,0.1]
[1763188207783,0.66,143.43,143.41,0.1]
[1763188208784,21.62216329,143.43,143.41,0.1]
[1763188209991,0.66,143.42,143.41,0.1]
[1763188210169,23.30592654,143.43,143.41,0.1]
[1763188210490,22.64592654,143.43,143.41,0.1]